fUST/lending_fUST_20250125
["ID","MTS","AMOUNT","RATE_DAILY","PERIOD"]
[350311504,1737783042883,-500.0,0.00017963,2]
[350311506,1737783042892,-622.918212,0.00017963,2]
[350311508,1737783042901,-622.918212,0.00017963,2]
[350311510,1737783042911,-622.918212,0.00017963,2]
[350311511,1737783042920,-622.918212,0.00017963,2]
[350311513,1737783042930,-622.918212,0.00017963,2]
[350311515,1737783042939,-622.918212,0.00017963,2]
[350311517,1737783042947,-500.0,0.00017963,2]
[350311519,1737783042956,-622.918212,0.00017963,2]
[350311521,1737783042966,-622.918212,0.00017963,2]
[350311524,1737783042975,-622.918212,0.00017963,2]
[350311527,1737783042984,-622.918212,0.00017963,2]
[350311528,1737783042994,-622.918212,0.00017963,2]
[350311530,1737783043003,-622.918212,0.00017963,2]
[350311532,1737783043013,-622.918212,0.00017963,2]
[350311534,1737783043023,-622.918212,0.00017963,2]
[350311536,1737783043032,-622.918212,0.00017963,2]
[350311539,1737783043042,-622.918215,0.00017963,2]
[350311541,1737783043052,-151.0,0.00017963,2]
[350311543,1737783043061,-151.0,0.00017963,2]
[350311545,1737783043070,-502.09781699,0.00017963,2]
[350311546,1737783043080,-151.0,0.00017963,2]
[350311548,1737783043089,-182.014816,0.00017963,2]
[350311550,1737783043098,-857.53,0.00017963,2]
[350311552,1737783043108,-295.42618163,0.00017963,2]
[350311554,1737783043118,-151.0,0.00017963,2]
[350311556,1737783043127,-151.0,0.00017963,2]
[350311558,1737783043136,-151.0,0.00017963,2]
[350311560,1737783043145,-500.0,0.00017963,2]
[350311561,1737783043155,-151.0,0.00017963,2]
[350311563,1737783043164,-151.0,0.00017963,2]
[350311565,1737783043174,-500.0,0.00017963,2]
[350311567,1737783043183,-151.0,0.00017963,2]
[350311569,1737783043192,-151.0,0.00017963,2]
[350311571,1737783043201,-1044.19,0.00017963,2]
[350311573,1737783043211,-503.58543101,0.00017963,2]
[350311575,1737783043220,-151.0,0.00017963,2]
[350311576,1737783043230,-223.834064,0.00017963,2]
[350311578,1737783043240,-500.0,0.00017963,2]
[350311580,1737783043250,-669.43,0.00017963,2]
[350311582,1737783043259,-517.15,0.00017963,2]
[350311584,1737783043268,-500.0,0.00017963,2]
[350311586,1737783043277,-605.47,0.00017963,2]
[350311588,1737783043286,-151.0,0.00017963,2]
[350311590,1737783043297,-151.0,0.00017963,2]
[350311591,1737783043306,-2093.17,0.00017963,2]
[350311593,1737783043315,-500.0,0.00017963,2]
[350311595,1737783043326,-500.0,0.00017963,2]
[350311597,1737783043335,-500.0,0.00017963,2]
[350311599,1737783043344,-500.0,0.00017963,2]
[350311601,1737783043354,-2020.91,0.00017963,2]
[350311602,1737783043363,-561.72089405,0.00017963,2]
[350311604,1737783043372,-795.29,0.00017963,2]
[350311606,1737783043382,-500.0,0.00017963,2]
[350311608,1737783043391,-1094.93,0.00017963,2]
[350311610,1737783043402,-500.0,0.00017963,2]
[350311612,1737783043411,-840.25,0.00017963,2]
[350311614,1737783043420,-501.57914248,0.00017963,2]
[350311616,1737783043430,-1008.041611,0.00017963,2]
[350311618,1737783043439,-500.0,0.00017963,2]
[350311619,1737783043448,-1008.041611,0.00017963,2]
[350311621,1737783043457,-1008.041611,0.00017963,2]
[350311623,1737783043467,-1024.29,0.00017963,2]
[350311625,1737783043476,-151.0,0.00017963,2]
[350311627,1737783043485,-1008.041611,0.00017963,2]
[350311629,1737783043494,-151.0,0.00017963,2]
[350311631,1737783043503,-1008.041611,0.00017963,2]
[350311633,1737783043512,-151.0,0.00017963,2]
[350311634,1737783043523,-1008.041612,0.00017963,2]
[350311636,1737783043532,-151.0,0.00017963,2]
[350311638,1737783043541,-151.0,0.00017963,2]
[350311640,1737783043552,-151.0,0.00017963,2]
[350311642,1737783043562,-151.0,0.00017963,2]
[350311644,1737783043571,-151.0,0.00017963,2]
[350311646,1737783043580,-151.0,0.00017963,2]
[350311648,1737783043593,-291.682046,0.00017963,2]
[350311650,1737783043602,-657.08,0.00017963,2]
[350311651,1737783043611,-1927.15,0.00017963,2]
[350311653,1737783043620,-192.518241,0.00017963,2]
[350311655,1737783043630,-192.518243,0.00017963,2]
[350311657,1737783043639,-500.0,0.00017963,2]
[350311659,1737783043648,-500.0,0.00017963,2]
[350311661,1737783043658,-500.0,0.00017963,2]
[350311663,1737783043668,-500.0,0.00017963,2]
[350311665,1737783043677,-500.0,0.00017963,2]
[350311667,1737783043686,-508.55,0.00017963,2]
[350311668,1737783043695,-511.234499,0.00017963,2]
[350311670,1737783043705,-511.234505,0.00017963,2]
[350311672,1737783043715,-500.0,0.00017963,2]
[350311674,1737783043724,-500.0,0.00017963,2]
[350311676,1737783043733,-666.47,0.00017963,2]
[350311678,1737783043743,-1017.92,0.00017963,2]
[350311680,1737783043753,-666.47,0.00017963,2]
[350311682,1737783043763,-666.47,0.00017963,2]
[350311683,1737783043772,-666.47,0.00017963,2]
[350311685,1737783043782,-666.47,0.00017963,2]
[350311687,1737783043791,-666.47,0.00017963,2]
[350311689,1737783043801,-666.47,0.00017963,2]
[350311691,1737783043810,-666.47,0.00017963,2]
[350311693,1737783043819,-666.47,0.00017963,2]
[350311695,1737783043829,-500.0,0.00017963,2]
[350311697,1737783043839,-500.0,0.00017963,2]
[350311698,1737783043848,-500.0,0.00017963,2]
[350311700,1737783043857,-3456.046116,0.00017963,2]
[350311702,1737783043867,-3456.046116,0.00017963,2]
[350311704,1737783043876,-3456.046116,0.00017963,2]
[350311706,1737783043885,-3456.046116,0.00017963,2]
[350311707,1737783043894,-3456.046116,0.00017963,2]
[350311708,1737783043903,-3456.046116,0.00017963,2]
[350311709,1737783043913,-3456.046116,0.00017963,2]
[350311710,1737783043922,-3456.046116,0.00017963,2]
[350311711,1737783043932,-3456.046116,0.00017963,2]
[350311712,1737783043941,-3456.046116,0.00017963,2]
[350311713,1737783043950,-3456.046116,0.00017963,2]
[350311714,1737783043959,-3456.046116,0.00017963,2]
[350311715,1737783043968,-500.0,0.00017963,2]
[350311716,1737783043977,-500.0,0.00017963,2]
[350311717,1737783043986,-2934.14,0.00017963,2]
[350311718,1737783043995,-151.916719,0.00017964,2]
[350311719,1737783044004,-339.997652,0.00017964,2]
[350311720,1737783044014,-339.997652,0.00017964,2]
[350311721,1737783044023,-339.997652,0.00017964,2]
[350311722,1737783044031,-339.997652,0.00017964,2]
[350311723,1737783044041,-339.997652,0.00017964,2]
[350311724,1737783044050,-339.997652,0.00017964,2]
[350311725,1737783044060,-339.99765,0.00017964,2]
[350311726,1737783044069,-151.0,0.00017964,2]
[350311727,1737783044078,-151.0,0.00017964,2]
[350311728,1737783044087,-151.0,0.00017964,2]
[350311729,1737783044097,-155.71017,0.00017964,2]
[350311730,1737783044106,-151.0,0.00017964,2]
[350311731,1737783044115,-151.0,0.00017964,2]
[350311733,1737783044124,-151.0,0.00017964,2]
[350311735,1737783044134,-151.0,0.00017964,2]
[350311737,1737783044143,-151.0,0.00017964,2]
[350311739,1737783044152,-151.0,0.00017964,2]
[350311741,1737783044162,-299.109044,0.00017964,2]
[350311743,1737783044172,-390.396434,0.00017964,2]
[350311745,1737783044182,-390.396434,0.00017964,2]
[350311747,1737783044191,-390.396434,0.00017964,2]
[350311749,1737783044201,-390.396434,0.00017964,2]
[350311751,1737783044211,-390.396434,0.00017964,2]
[350311753,1737783044220,-390.396434,0.00017964,2]
[350311755,1737783044229,-390.396434,0.00017964,2]
[350311757,1737783044238,-390.396434,0.00017964,2]
[350311759,1737783044247,-390.396434,0.00017964,2]
[350311761,1737783044256,-390.396434,0.00017964,2]
[350311763,1737783044266,-390.396434,0.00017964,2]
[350311765,1737783044276,-390.396434,0.00017964,2]
[350311767,1737783044285,-390.396434,0.00017964,2]
[350311769,1737783044295,-390.396434,0.00017964,2]
[350311771,1737783044305,-390.396434,0.00017964,2]
[350311773,1737783044315,-390.396434,0.00017964,2]
[350311775,1737783044325,-390.396434,0.00017964,2]
[350311777,1737783044335,-390.396434,0.00017964,2]
[350311779,1737783044345,-390.396434,0.00017964,2]
[350311781,1737783044354,-390.396424,0.00017964,2]
[350311783,1737783044364,-151.0,0.00017964,2]
[350311785,1737783044373,-151.0,0.00017964,2]
[350311787,1737783044382,-151.0,0.00017964,2]
[350311789,1737783044391,-151.0,0.00017964,2]
[350311802,1737783044401,-151.0,0.00017964,2]
[350311805,1737783044517,-151.0,0.00017964,2]
[350311807,1737783044527,-151.0,0.00017964,2]
[350311809,1737783044536,-151.0,0.00017964,2]
[350311811,1737783044547,-151.0,0.00017964,2]
[350311813,1737783044557,-151.0,0.00017964,2]
[350311814,1737783044568,-151.0,0.00017964,2]
[350311817,1737783044578,-151.0,0.00017964,2]
[350311818,1737783044589,-151.0,0.00017964,2]
[350311820,1737783044600,-151.0,0.00017964,2]
[350311823,1737783044609,-184.699613,0.00017964,2]
[350311825,1737783044618,-151.0,0.00017964,2]
[350311826,1737783044628,-151.0,0.00017964,2]
[350311828,1737783044638,-151.0,0.00017964,2]
[350311831,1737783044648,-151.0,0.00017964,2]
[350311833,1737783044657,-152.013048,0.00017964,2]
[350311834,1737783044668,-263.894382,0.00017964,2]
[350311837,1737783044678,-263.894382,0.00017964,2]
[350311838,1737783044687,-263.894382,0.00017964,2]
[350311840,1737783044696,-263.894388,0.00017964,2]
[350311843,1737783044706,-666.47,0.00017964,2]
[350311845,1737783044716,-666.47,0.00017964,2]
[350311846,1737783044727,-666.47,0.00017964,2]
[350311849,1737783044737,-666.47,0.00017964,2]
[350311850,1737783044746,-666.47,0.00017964,2]
[350311853,1737783044757,-666.47,0.00017964,2]
[350311855,1737783044766,-666.59,0.00017964,2]
[350311856,1737783044775,-151.0,0.00017965,2]
[350311858,1737783044784,-500.0,0.00017965,2]
[350311861,1737783044794,-500.0,0.00017965,2]
[350311862,1737783044804,-616.12,0.00017965,2]
[350311864,1737783044813,-500.0,0.00017965,2]
[350311866,1737783044822,-511.58,0.00017965,2]
[350311869,1737783044832,-500.0,0.00017965,2]
[350311871,1737783044841,-500.0,0.00017965,2]
[350311872,1737783044850,-595.04977387,0.00017965,2]
[350311875,1737783044859,-912.18,0.00017965,2]
[350311877,1737783044869,-816.96,0.00017965,2]
[350311879,1737783044878,-500.0,0.00017965,2]
[350311881,1737783044887,-433.10916356,0.00017965,2]
[350311882,1737783044897,-500.0,0.00017965,2]
[350311884,1737783044906,-500.0,0.00017965,2]
[350311886,1737783044915,-510.11911414,0.00017965,2]
[350311888,1737783044925,-500.0,0.00017965,2]
[350311890,1737783044935,-151.0,0.00017966,2]
[350311892,1737783044944,-201.840173,0.00017966,2]
[350311894,1737783044953,-151.0,0.00017966,2]
[350311896,1737783044962,-151.0,0.00017967,2]
[350311898,1737783044972,-151.0,0.00017967,2]
[350311900,1737783044982,-151.0,0.00017967,2]
[350311902,1737783044992,-151.0,0.00017967,2]
[350311905,1737783045001,-151.0,0.00017968,2]
[350311907,1737783045013,-151.0,0.00017968,2]
[350311908,1737783045022,-151.0,0.00017968,2]
[350311910,1737783045031,-151.0,0.00017968,2]
[350311912,1737783045041,-151.0,0.00017968,2]
[350311914,1737783045051,-270.373405,0.00017968,2]
[350311917,1737783045060,-151.0,0.00017968,2]
[350311918,1737783045069,-188.612799,0.00017968,2]
[350311921,1737783045079,-1000.0,0.00017969,2]
[350311922,1737783045088,-151.0,0.00017969,2]
[350311925,1737783045098,-151.0,0.0001797,2]
[350311926,1737783045107,-151.0,0.0001797,2]
[350311929,1737783045117,-7438.69753278,0.00018,2]
[350311930,1737783045126,-500.0,0.00018,2]
[350311933,1737783045135,-151.0,0.00018,2]
[350311935,1737783045145,-151.0,0.00018,2]
[350311937,1737783045154,-302.6761396,0.00018,2]
[350311939,1737783045164,-354.0685108,0.00018,2]
[350311940,1737783045173,-159.5996199,0.00018,2]
[350311943,1737783045183,-160.0,0.00018,15]
[350311944,1737783045192,-500.0,0.00018002,2]
[350311946,1737783045201,-787.0,0.00018002,2]
[350311949,1737783045211,-3715.07,0.00018002,2]
[350311951,1737783045221,-1000.0,0.00018002,7]
[350311953,1737783045231,-500.0,0.00018002,2]
[350311955,1737783045240,-1539.86,0.00018002,2]
[350311957,1737783045249,-500.0,0.00018002,2]
[350311959,1737783045259,-500.81,0.00018002,2]
[350311961,1737783045268,-500.0,0.00018002,2]
[350311963,1737783045277,-500.0,0.00018002,2]
[350311965,1737783045287,-500.0,0.00018002,2]
[350311967,1737783045296,-500.0,0.00018002,2]
[350311969,1737783045305,-505.46,0.00018002,2]
[350311971,1737783045315,-500.0,0.00018003,2]
[350311973,1737783045324,-544.2,0.00018003,2]
[350311975,1737783045333,-500.0,0.00018003,2]
[350311976,1737783045342,-629.82962211,0.00018003,2]
[350311979,1737783045351,-500.0,0.00018003,2]
[350311981,1737783045363,-1052.84,0.00018003,2]
[350311983,1737783045372,-500.0,0.00018003,2]
[350311985,1737783045382,-500.0,0.00018003,2]
[350311987,1737783045391,-654.95,0.00018003,2]
[350311989,1737783045401,-546.02,0.00018003,2]
[350311991,1737783045410,-1282.17,0.00018003,2]
[350311993,1737783045420,-828.62,0.00018003,2]
[350311995,1737783045429,-500.0,0.00018003,2]
[350311997,1737783045438,-918.14,0.00018003,2]
[350311999,1737783045448,-583.23031053,0.00018003,2]
[350312001,1737783045459,-500.0,0.00018003,2]
[350312003,1737783045468,-787.76,0.00018003,2]
[350312005,1737783045477,-500.0,0.00018003,2]
[350312007,1737783045486,-500.0,0.00018003,2]
[350312009,1737783045495,-871.44,0.00018003,2]
[350312010,1737783045506,-500.0,0.00018003,2]
[350312013,1737783045516,-716.58,0.00018003,2]
[350312014,1737783045526,-500.0,0.00018003,2]
[350312016,1737783045535,-500.0,0.00018003,2]
[350312019,1737783045545,-500.0,0.00018003,2]
[350312021,1737783045555,-616.39,0.00018003,2]
[350312023,1737783045565,-500.0,0.00018003,2]
[350312025,1737783045575,-1219.8,0.00018003,2]
[350312027,1737783045585,-985.76,0.00018003,2]
[350312028,1737783045597,-500.0,0.00018003,2]
[350312031,1737783045606,-376.37495816,0.00018003,2]
[350312033,1737783045616,-500.0,0.00018003,2]
[350312035,1737783045626,-1865.78,0.00018003,2]
[350312036,1737783045635,-2424.05,0.00018003,2]
[350312039,1737783045645,-500.0,0.00018003,2]
[350312040,1737783045654,-500.0,0.00018003,2]
[350312043,1737783045664,-881.13,0.00018003,2]
[350312044,1737783045674,-500.0,0.00018003,2]
[350312047,1737783045684,-500.0,0.00018003,2]
[350312049,1737783045693,-2623.3,0.00018003,2]
[350312050,1737783045702,-5048.5,0.00018003,2]
[350312052,1737783045712,-500.0,0.00018003,2]
[350312054,1737783045721,-500.0,0.00018003,2]
[350312056,1737783045731,-2015.43,0.00018003,2]
[350312058,1737783045740,-500.0,0.00018003,2]
[350312060,1737783045750,-500.0,0.00018003,2]
[350312062,1737783045759,-500.0,0.00018003,2]
[350312064,1737783045768,-1631.08,0.00018003,2]
[350312067,1737783045778,-753.24,0.00018003,2]
[350312068,1737783045787,-810.73,0.00018003,2]
[350312070,1737783045796,-601.82,0.00018003,2]
[350312072,1737783045807,-500.0,0.00018003,2]
[350312075,1737783045816,-1029.1,0.00018003,2]
[350312077,1737783045827,-500.0,0.00018003,2]
[350312079,1737783045836,-500.0,0.00018003,2]
[350312081,1737783045845,-500.0,0.00018003,2]
[350312083,1737783045855,-2022.49,0.00018003,2]
[350312085,1737783045864,-516.93262703,0.00018003,2]
[350312087,1737783045874,-545.48,0.00018003,2]
[350312089,1737783045883,-500.0,0.00018003,2]
[350312091,1737783045893,-500.0,0.00018003,2]
[350312093,1737783045903,-500.0,0.00018003,2]
[350312095,1737783045912,-8619.28,0.00018003,2]
[350312097,1737783045921,-500.0,0.00018003,2]
[350312099,1737783045931,-500.0,0.00018003,2]
[350312101,1737783045941,-26555.84,0.00018003,2]
[350312105,1737783045950,-509.42641806,0.00018003,2]
[350312108,1737783045960,-386.00369179,0.00018003,2]
[350312112,1737783045969,-500.0,0.00018003,2]
[350312115,1737783045979,-3073.32,0.00018003,2]
[350312117,1737783045988,-832.25,0.00018003,2]
[350312119,1737783045997,-500.0,0.00018003,2]
[350312121,1737783046007,-500.0,0.00018003,2]
[350312123,1737783046017,-3753.59,0.00018003,2]
[350312125,1737783046026,-500.0,0.00018003,2]
[350312127,1737783046035,-1859.87,0.00018003,2]
[350312129,1737783046044,-1711.96,0.00018003,2]
[350312132,1737783046055,-500.0,0.00018003,2]
[350312135,1737783046065,-908.57,0.00018003,2]
[350312138,1737783046074,-581.39,0.00018003,2]
[350312141,1737783046083,-500.0,0.00018003,2]
[350312144,1737783046093,-735.83,0.00018003,2]
[350312147,1737783046102,-500.0,0.00018003,2]
[350312150,1737783046112,-1378.74,0.00018003,2]
[350312153,1737783046121,-605.72,0.00018003,2]
[350312156,1737783046131,-500.0,0.00018003,2]
[350312159,1737783046140,-500.0,0.00018003,2]
[350312161,1737783046150,-547.67,0.00018003,2]
[350312163,1737783046159,-500.0,0.00018003,2]
[350312165,1737783046168,-1062.45,0.00018003,2]
[350312167,1737783046178,-500.0,0.00018003,2]
[350312169,1737783046187,-500.0,0.00018003,2]
[350312171,1737783046196,-505.25518868,0.00018003,2]
[350312173,1737783046206,-500.0,0.00018003,2]
[350312175,1737783046216,-500.0,0.00018003,2]
[350312177,1737783046225,-500.0,0.00018003,2]
[350312179,1737783046237,-500.0,0.00018003,2]
[350312181,1737783046246,-2627.06,0.00018003,2]
[350312183,1737783046255,-500.0,0.00018003,2]
[350312185,1737783046264,-500.0,0.00018003,2]
[350312187,1737783046274,-500.0,0.00018003,2]
[350312189,1737783046284,-3526.72,0.00018003,2]
[350312191,1737783046294,-1232.6,0.00018003,2]
[350312193,1737783046306,-1205.19,0.00018003,2]
[350312195,1737783046315,-500.0,0.00018003,2]
[350312197,1737783046324,-16989.41,0.00018003,2]
[350312199,1737783046334,-2700.19,0.00018003,2]
[350312201,1737783046343,-500.0,0.00018003,2]
[350312203,1737783046353,-5593.18,0.00018003,2]
[350312205,1737783046363,-636.38882771,0.00018003,2]
[350312207,1737783046372,-500.0,0.00018003,2]
[350312209,1737783046382,-963.98,0.00018003,2]
[350312211,1737783046392,-1368.82,0.00018003,2]
[350312213,1737783046401,-500.0,0.00018003,2]
[350312215,1737783046411,-557.36,0.00018003,2]
[350312217,1737783046420,-500.0,0.00018003,2]
[350312219,1737783046429,-500.0,0.00018003,2]
[350312221,1737783046439,-55156.21,0.00018003,2]
[350312223,1737783046449,-500.0,0.00018003,2]
[350312225,1737783046459,-500.0,0.00018003,2]
[350312227,1737783046468,-500.0,0.00018003,2]
[350312229,1737783046477,-611.62,0.00018004,2]
[350312231,1737783046486,-500.0,0.00018004,2]
[350312233,1737783046496,-500.0,0.00018004,2]
[350312235,1737783046505,-262.78936139,0.00018004,2]
[350312237,1737783046515,-500.0,0.00018004,2]
[350312239,1737783046525,-187.7885143,0.00018004,2]
[350312241,1737783046535,-500.0,0.00018004,2]
[350312243,1737783046544,-500.0,0.00018004,2]
[350312245,1737783046555,-500.0,0.00018004,2]
[350312247,1737783046565,-186.48804255,0.00018004,2]
[350312249,1737783046574,-500.0,0.00018004,2]
[350312251,1737783046583,-500.0,0.00018004,2]
[350312253,1737783046597,-500.0,0.00018004,2]
[350312255,1737783046607,-500.0,0.00018004,2]
[350312257,1737783046616,-500.0,0.00018004,2]
[350312259,1737783046627,-500.0,0.00018004,2]
[350312261,1737783046637,-500.0,0.00018004,2]
[350312263,1737783046646,-500.0,0.00018004,2]
[350312265,1737783046656,-500.0,0.00018004,2]
[350312267,1737783046666,-526.67923138,0.00018004,2]
[350312269,1737783046676,-500.0,0.00018004,2]
[350312271,1737783046685,-500.0,0.00018004,2]
[350312273,1737783046696,-500.0,0.00018004,2]
[350312275,1737783046705,-500.0,0.00018004,2]
[350312277,1737783046715,-1461.53,0.00018004,2]
[350312279,1737783046724,-500.0,0.00018004,2]
[350312281,1737783046733,-500.0,0.00018004,2]
[350312283,1737783046743,-500.0,0.00018004,2]
[350312296,1737783046857,-500.0,0.00018004,2]
[350312298,1737783046867,-500.0,0.00018004,2]
[350312300,1737783046878,-500.0,0.00018004,2]
[350312302,1737783046888,-500.0,0.00018004,2]
[350312304,1737783046898,-500.0,0.00018004,2]
[350312307,1737783046908,-500.0,0.00018004,2]
[350312308,1737783046918,-631.75,0.00018004,2]
[350312310,1737783046927,-630.05,0.00018004,2]
[350312313,1737783046937,-500.0,0.00018004,2]
[350312315,1737783046947,-500.0,0.00018004,2]
[350312316,1737783046956,-500.0,0.00018004,2]
[350312318,1737783046966,-770.5,0.00018004,2]
[350312321,1737783046976,-500.0,0.00018004,2]
[350312322,1737783046985,-500.0,0.00018004,2]
[350312325,1737783046996,-500.0,0.00018004,2]
[350312327,1737783047005,-500.0,0.00018004,2]
[350312329,1737783047015,-500.0,0.00018004,2]
[350312330,1737783047025,-500.0,0.00018004,2]
[350312332,1737783047035,-500.0,0.00018004,2]
[350312335,1737783047044,-412.61436501,0.00018004,2]
[350312337,1737783047057,-529.82209289,0.00018004,2]
[350312339,1737783047067,-508.49828736,0.00018004,2]
[350312340,1737783047077,-500.0,0.00018004,2]
[350312343,1737783047087,-500.0,0.00018004,2]
[350312344,1737783047096,-500.0,0.00018004,2]
[350312347,1737783047106,-500.0,0.00018004,2]
[350312349,1737783047116,-500.0,0.00018004,2]
[350312351,1737783047126,-507.73,0.00018004,2]
[350312352,1737783047135,-519.80112759,0.00018004,2]
[350312353,1737783047144,-500.0,0.00018004,2]
[350312354,1737783047154,-768.09,0.00018004,2]
[350312355,1737783047164,-500.0,0.00018004,2]
[350312356,1737783047174,-500.0,0.00018004,2]
[350312357,1737783047183,-500.0,0.00018004,2]
[350312358,1737783047193,-500.0,0.00018004,2]
[350312359,1737783047202,-500.0,0.00018004,2]
[350312360,1737783047212,-500.0,0.00018004,2]
[350312361,1737783047222,-301.28411828,0.00018004,2]
[350312362,1737783047231,-500.0,0.00018004,2]
[350312363,1737783047241,-500.0,0.00018004,2]
[350312364,1737783047251,-500.0,0.00018004,2]
[350312365,1737783047261,-500.0,0.00018004,2]
[350312367,1737783047270,-750.18,0.00018004,2]
[350312369,1737783047279,-500.0,0.00018004,2]
[350312371,1737783047289,-500.0,0.00018004,2]
[350312372,1737783047298,-500.0,0.00018004,2]
[350312374,1737783047308,-500.0,0.00018004,2]
[350312377,1737783047318,-345.96451898,0.00018004,2]
[350312378,1737783047327,-463.43135325,0.00018004,2]
[350312381,1737783047337,-581.05,0.00018004,2]
[350312382,1737783047347,-574.13831262,0.00018004,2]
[350312384,1737783047356,-500.0,0.00018004,2]
[350312386,1737783047366,-500.0,0.00018004,2]
[350312388,1737783047375,-500.0,0.00018004,2]
[350312391,1737783047385,-500.0,0.00018004,2]
[350312392,1737783047395,-384.0168815,0.00018004,2]
[350312394,1737783047404,-500.0,0.00018004,2]
[350312396,1737783047413,-500.0,0.00018004,2]
[350312398,1737783047422,-500.0,0.00018004,2]
[350312400,1737783047432,-500.0,0.00018004,2]
[350312402,1737783047441,-500.0,0.00018004,2]
[350312404,1737783047451,-506.67,0.00018004,2]
[350312406,1737783047460,-500.0,0.00018004,2]
[350312408,1737783047470,-852.39,0.00018004,2]
[350312411,1737783047481,-500.0,0.00018004,2]
[350312413,1737783047490,-758.84,0.00018004,2]
[350312415,1737783047500,-500.0,0.00018004,2]
[350312416,1737783047510,-500.0,0.00018004,2]
[350312418,1737783047519,-500.0,0.00018004,2]
[350312421,1737783047530,-500.0,0.00018004,2]
[350312423,1737783047540,-500.0,0.00018004,2]
[350312425,1737783047551,-500.0,0.00018004,2]
[350312427,1737783047561,-500.0,0.00018004,2]
[350312429,1737783047570,-543.88713419,0.00018004,2]
[350312431,1737783047579,-500.0,0.00018004,2]
[350312433,1737783047591,-500.0,0.00018004,2]
[350312435,1737783047601,-500.0,0.00018004,2]
[350312437,1737783047610,-500.0,0.00018004,2]
[350312439,1737783047620,-500.0,0.00018004,2]
[350312441,1737783047630,-3068.28,0.00018004,2]
[350312443,1737783047639,-505.9016128,0.00018004,2]
[350312445,1737783047648,-500.0,0.00018004,2]
[350312447,1737783047657,-500.0,0.00018004,2]
[350312449,1737783047669,-500.0,0.00018004,2]
[350312451,1737783047679,-1339.02,0.00018004,2]
[350312453,1737783047688,-500.0,0.00018004,2]
[350312455,1737783047697,-853.96,0.00018004,2]
[350312457,1737783047706,-500.0,0.00018004,2]
[350312459,1737783047715,-500.0,0.00018004,2]
[350312460,1737783047724,-500.0,0.00018004,2]
[350312462,1737783047734,-500.0,0.00018004,2]
[350312464,1737783047743,-500.0,0.00018004,2]
[350312466,1737783047753,-17828.12,0.00018004,2]
[350312468,1737783047762,-500.0,0.00018004,2]
[350312470,1737783047772,-500.0,0.00018004,2]
[350312472,1737783047781,-1577.34,0.00018004,2]
[350312474,1737783047791,-500.0,0.00018004,2]
[350312476,1737783047801,-500.0,0.00018004,2]
[350312478,1737783047811,-500.0,0.00018004,2]
[350312480,1737783047820,-500.0,0.00018004,2]
[350312482,1737783047829,-500.0,0.00018004,2]
[350312484,1737783047838,-500.0,0.00018004,2]
[350312486,1737783047847,-500.0,0.00018004,2]
[350312488,1737783047857,-500.0,0.00018004,2]
[350312490,1737783047866,-1117.98,0.00018004,2]
[350312492,1737783047876,-500.0,0.00018004,2]